bitfinex/quotes_BTCUSD_20240826
["timestamp","ask_amount","ask_price","bid_price","bid_amount"]
[1724705761960,1.71388702,63537.0,63536.0,0.0009075]
[1724705762709,1.39911002,63537.0,63536.0,0.0009075]
[1724705762941,1.17333312,63537.0,63536.0,0.0009075]
[1724705763094,0.25007908,63537.0,63536.0,0.0009075]
[1724705763292,0.25007908,63537.0,63536.0,0.0828075]
[1724705763502,0.25007908,63537.0,63536.0,0.1474075]
[1724705763503,0.34456983,63537.0,63536.0,0.1474075]
[1724705763697,0.09069198,63537.0,63536.0,0.1474075]
[1724705763898,0.177213,63537.0,63536.0,0.1474075]
[1724705764108,0.41333175,63537.0,63536.0,0.1474075]
[1724705765082,0.25594375,63537.0,63536.0,0.1474075]
[1724705765643,0.25516841,63537.0,63536.0,0.1474075]
[1724705765932,0.019825,63537.0,63536.0,0.1474075]
[1724705766732,0.25489592,63537.0,63536.0,0.1474075]
[1724705769362,0.019825,63537.0,63536.0,0.1474075]
[1724705771557,0.019825,63537.0,63536.0,0.0828075]
[1724705773251,0.019825,63537.0,63536.0,0.0009075]
[1724705775831,0.177213,63537.0,63536.0,0.0009075]
[1724705776103,0.019825,63537.0,63536.0,0.0009075]
[1724705776741,0.177213,63537.0,63536.0,0.0009075]
[1724705778750,0.52935994,63537.0,63536.0,0.0009075]
[1724705779392,0.41133996,63537.0,63536.0,0.0009075]
[1724705780091,0.72611696,63537.0,63536.0,0.0009075]
[1724705780267,0.41133996,63537.0,63536.0,0.0009075]
[1724705782220,0.50574583,63537.0,63536.0,0.0009075]
[1724705787355,0.82052283,63537.0,63536.0,0.0009075]
[1724705792593,1.13529983,63537.0,63536.0,0.0009075]
[1724705792795,1.29027865,63537.0,63536.0,0.0009075]
[1724705793006,1.76967963,63537.0,63536.0,0.0009075]
[1724705793240,1.92933144,63537.0,63536.0,0.0009075]
[1724705796520,2.40343541,63537.0,63536.0,0.0009075]
[1724705796735,2.24410844,63537.0,63536.0,0.0009075]
[1724705796961,2.24410844,63537.0,63536.0,7.95e-06]
[1724705797417,2.23610844,63537.0,63536.0,7.95e-06]
[1724705798287,2.22510844,63537.0,63536.0,7.95e-06]
[1724705798788,2.70906345,63537.0,63536.0,7.95e-06]
[1724705799020,2.81206345,63537.0,63536.0,7.95e-06]
[1724705799253,0.472321,63516.0,63515.0,0.0009075]
[1724705799483,0.54308719,63516.0,63515.0,0.0009075]
[1724705800135,0.472321,63516.0,63515.0,0.0009075]
[1724705801132,0.51947201,63516.0,63515.0,0.0009075]
[1724705802178,0.52247201,63516.0,63515.0,0.0009075]
[1724705802402,0.475321,63516.0,63515.0,0.0009075]
[1724705803197,0.476321,63516.0,63515.0,0.0009075]
[1724705803627,1.66643493,63516.0,63515.0,0.0009075]
[1724705803853,2.06713902,63516.0,63515.0,0.0009075]
[1724705804047,2.66036173,63516.0,63515.0,0.0009075]
[1724705804860,2.65836173,63516.0,63515.0,0.0009075]
[1724705805318,2.67136173,63516.0,63515.0,0.0009075]
[1724705805618,2.66736173,63516.0,63515.0,0.0009075]
[1724705806101,2.38757594,63516.0,63515.0,0.0009075]
[1724705806447,2.40157594,63516.0,63515.0,0.0009075]
[1724705807758,2.08669494,63516.0,63515.0,0.0009075]
[1724705810146,2.20416225,63516.0,63515.0,0.0009075]
[1724705811246,2.08669494,63516.0,63515.0,0.0009075]
[1724705811598,2.08650551,63516.0,63515.0,0.0009075]
[1724705812191,2.18044084,63516.0,63515.0,0.0009075]
[1724705812945,2.19687291,63516.0,63515.0,0.0009075]
[1724705813147,2.19685842,63516.0,63515.0,0.0009075]
[1724705813286,2.19507042,63516.0,63515.0,0.0009075]
[1724705815198,2.10114958,63516.0,63515.0,0.0009075]
[1724705816183,1.84929882,63516.0,63515.0,0.0009075]
[1724705816358,1.94265144,63516.0,63515.0,0.0009075]
[1724705816537,1.87223727,63516.0,63515.0,0.0009075]
[1724705818138,1.91917259,63516.0,63515.0,0.0009075]
[1724705820618,1.87223727,63516.0,63515.0,0.0009075]
[1724705822899,2.17562969,63516.0,63515.0,0.0009075]
[1724705823099,1.91917059,63516.0,63515.0,0.0009075]
[1724705823223,1.91917193,63516.0,63515.0,0.0009075]
[1724705824042,1.94384809,63516.0,63515.0,0.0009075]
[1724705824576,1.96731961,63516.0,63515.0,0.0009075]
[1724705824802,2.10610996,63516.0,63515.0,0.0009075]
[1724705824981,2.19998622,63516.0,63515.0,0.0009075]
[1724705825195,2.10610996,63516.0,63515.0,0.0009075]
[1724705825396,2.19998622,63516.0,63515.0,0.0009075]
[1724705825555,2.10610996,63516.0,63515.0,0.0009075]
[1724705825980,2.10810996,63516.0,63515.0,0.0009075]
[1724705826203,2.10723037,63516.0,63515.0,0.0009075]
[1724705826406,2.42211137,63516.0,63515.0,0.0009075]
[1724705826620,2.10723037,63516.0,63515.0,0.0009075]
[1724705827044,2.42211137,63516.0,63515.0,0.0009075]
[1724705827222,2.53946985,63516.0,63515.0,0.0009075]
[1724705827425,2.22458885,63516.0,63515.0,0.0009075]
[1724705828043,2.38072053,63516.0,63515.0,0.0009075]
[1724705828387,2.38154553,63516.0,63515.0,0.0009075]
[1724705828831,2.22541385,63516.0,63515.0,0.0009075]
[1724705829458,2.225397,63516.0,63515.0,0.0009075]
[1724705829861,1.87473843,63516.0,63515.0,0.0009075]
[1724705830076,2.17852266,63516.0,63515.0,0.0009075]
[1724705830308,2.17853675,63516.0,63515.0,0.0009075]
[1724705830509,2.17906792,63516.0,63515.0,0.0009075]
[1724705830860,2.2022335,63516.0,63515.0,0.0009075]
[1724705831060,2.20200507,63516.0,63515.0,0.0009075]
[1724705831279,2.10807469,63516.0,63515.0,0.0009075]
[1724705831632,2.22551132,63516.0,63515.0,0.0009075]
[1724705831861,2.10807469,63516.0,63515.0,0.0009075]
[1724705832064,2.12450676,63516.0,63515.0,0.0009075]
[1724705832266,2.12650676,63516.0,63515.0,0.0009075]
[1724705835550,2.12560204,63516.0,63515.0,0.0009075]
[1724705835940,1.9161705,63516.0,63515.0,0.0009075]
[1724705836146,2.26636261,63516.0,63515.0,0.0009075]
[1724705836324,2.5467948,63516.0,63515.0,0.0009075]
[1724705836933,2.40570343,63516.0,63515.0,0.0009075]
[1724705837598,2.40496787,63516.0,63515.0,0.0009075]
[1724705838596,2.56109955,63516.0,63515.0,0.0009075]
[1724705838797,2.40496787,63516.0,63515.0,0.0009075]
[1724705839210,2.56383613,63516.0,63515.0,0.0009075]
[1724705840582,2.40496787,63516.0,63515.0,0.0009075]
[1724705845040,2.40734002,63516.0,63515.0,0.0009075]
[1724705846096,2.29655533,63516.0,63515.0,0.0009075]
[1724705846306,2.40534002,63516.0,63515.0,0.0009075]
[1724705849587,2.63761204,63516.0,63515.0,0.0009075]
[1724705849865,2.29555533,63516.0,63515.0,0.0009075]
[1724705850070,2.40534002,63516.0,63515.0,0.0009075]
[1724705854755,2.40369836,63516.0,63515.0,0.0009075]
[1724705856350,1.34647366,63516.0,63515.0,0.1458075]
[1724705856570,1.3217975,63516.0,63515.0,0.1458075]
[1724705856783,1.04126079,63516.0,63515.0,0.1458075]
[1724705856993,1.30536543,63516.0,63515.0,0.1458075]
[1724705857193,1.29136543,63516.0,63515.0,0.1458075]
[1724705857409,1.15259381,63516.0,63515.0,0.1458075]
[1724705857613,1.16659381,63516.0,63515.0,0.1458075]
[1724705857892,1.13859381,63516.0,63515.0,0.1458075]
[1724705858342,1.16659381,63516.0,63515.0,0.1458075]
[1724705858545,1.02482872,63516.0,63515.0,0.1458075]
[1724705859372,1.01082872,63516.0,63515.0,0.1458075]
[1724705859570,1.03241305,63516.0,63515.0,0.1458075]
[1724705862689,0.71753205,63516.0,63515.0,0.1458075]
[1724705863729,0.40265105,63516.0,63515.0,0.1458075]
[1724705864259,0.52162961,63516.0,63515.0,0.1458075]
[1724705864662,0.40365013,63516.0,63515.0,0.1458075]
[1724705865517,0.49800413,63516.0,63515.0,0.1458075]
[1724705866756,0.81288513,63516.0,63515.0,0.1458075]
[1724705867341,0.028825,63516.0,63515.0,0.41303519]
[1724705867544,0.028825,63516.0,63515.0,0.72792119]
[1724705868335,0.014825,63516.0,63515.0,0.72792119]
[1724705868538,0.000825,63516.0,63515.0,0.8840992]
[1724705868754,0.028825,63516.0,63515.0,0.8840992]
[1724705868948,0.014825,63516.0,63515.0,1.1989852]
[1724705869959,0.000825,63516.0,63515.0,1.1989852]
[1724705870418,0.000825,63516.0,63515.0,0.8840992]
[1724705870645,0.001825,63516.0,63515.0,1.1989852]
[1724705871619,0.001825,63516.0,63515.0,0.8840992]
[1724705872705,0.001825,63516.0,63515.0,1.1989852]
[1724705872899,0.001825,63516.0,63515.0,0.8840992]
[1724705873669,0.001825,63516.0,63515.0,1.1989852]
[1724705874100,0.001825,63516.0,63515.0,0.8840992]
[1724705875366,0.001825,63516.0,63515.0,1.1989852]
[1724705875580,0.001825,63516.0,63515.0,0.8840992]
[1724705876436,0.001825,63516.0,63515.0,1.1989852]
[1724705876954,0.001825,63516.0,63515.0,0.8840992]
[1724705880498,0.001825,63516.0,63515.0,0.77431451]
[1724705882411,0.001825,63516.0,63515.0,1.08920051]
[1724705882773,0.001825,63516.0,63515.0,1.40408651]
[1724705883406,0.001825,63516.0,63515.0,1.50408651]
[1724705888408,0.001825,63516.0,63515.0,1.81897251]
[1724705889414,0.000825,63516.0,63515.0,1.50408651]
[1724705889624,0.000825,63516.0,63515.0,1.81897251]
[1724705889817,0.001825,63516.0,63515.0,1.81897251]
[1724705890228,0.000825,63516.0,63515.0,1.81897251]
[1724705890438,0.001825,63516.0,63515.0,1.81897251]
[1724705890664,0.002825,63516.0,63515.0,1.81897251]
[1724705894270,0.002825,63516.0,63515.0,1.81997251]
[1724705896988,0.002825,63516.0,63515.0,2.13485851]
[1724705897648,0.000825,63516.0,63515.0,2.13485851]
[1724705898087,0.002825,63516.0,63515.0,2.13485851]
[1724705901527,0.04987099,63535.0,63534.0,1.101772]
[1724705901761,0.04987099,63535.0,63534.0,1.3677347]
[1724705902146,0.000824,63536.0,63535.0,0.786967]
[1724705902385,0.000824,63536.0,63535.0,1.25793201]
[1724705904548,0.004824,63536.0,63535.0,1.25793201]
[1724705905111,0.005824,63536.0,63535.0,1.26593201]
[1724705905925,0.005824,63536.0,63535.0,1.58071901]
[1724705906210,0.005824,63536.0,63535.0,1.73391486]
[1724705906412,0.005824,63536.0,63535.0,1.83391486]
[1724705907030,0.004824,63536.0,63535.0,1.83391486]
[1724705907227,0.000824,63536.0,63535.0,1.83391486]
[1724705907564,0.001824,63536.0,63535.0,1.83391486]
[1724705907756,0.002824,63536.0,63535.0,1.84391486]
[1724705918415,0.002824,63536.0,63535.0,1.77921486]
[1724705919241,0.002824,63536.0,63535.0,1.70191486]
[1724705930781,0.150924,63536.0,63535.0,1.38612786]
[1724705931198,0.002824,63536.0,63535.0,1.38712786]
[1724705932007,0.143824,63536.0,63535.0,1.38612786]
[1724705933869,0.143824,63536.0,63535.0,0.44176686]
[1724705934067,0.143824,63536.0,63535.0,1.07134086]
[1724705934419,0.143824,63536.0,63535.0,1.38612786]
[1724705936963,0.080524,63536.0,63535.0,1.38612786]
[1724705976623,0.080524,63536.0,63535.0,1.49591255]
[1724705977034,0.145124,63536.0,63535.0,1.38612786]
[1724705977215,0.145124,63536.0,63535.0,0.75655386]
[1724705979257,0.145124,63536.0,63535.0,1.07134086]
[1724706000204,0.145124,63536.0,63524.0,0.4692]
[1724706000205,0.34700235,63536.0,63516.0,0.0009075]
[1724706000436,0.1462,63521.0,63520.0,0.0101693]
[1724706000674,0.1462,63520.0,63517.0,0.15617801]
[1724706000905,0.19343433,63518.0,63517.0,0.15617801]
[1724706001155,0.1462,63517.0,63516.0,0.0009075]
[1724706001413,0.5273038,63517.0,63516.0,0.0009075]
[1724706001654,0.3856008,63517.0,63516.0,0.0009075]
[1724706002126,0.19337182,63517.0,63516.0,0.0009075]
[1724706002365,0.1462,63517.0,63516.0,0.0009075]
[1724706002598,0.1462,63517.0,63516.0,0.15708551]
[1724706004287,0.1482,63517.0,63516.0,0.15708551]
[1724706007946,0.172869,63517.0,63516.0,0.15708551]
[1724706016172,0.170869,63517.0,63516.0,0.15708551]
[1724706016422,0.170869,63517.0,63516.0,0.16008551]
[1724706016658,0.171869,63517.0,63516.0,0.16008551]
[1724706024671,0.170869,63517.0,63516.0,0.16008551]
[1724706025651,0.170869,63517.0,63516.0,0.15708551]
[1724706026093,0.172869,63517.0,63516.0,0.15708551]
[1724706034100,0.026669,63517.0,63516.0,0.23823421]
[1724706034298,0.002,63517.0,63516.0,0.40333421]
[1724706035343,0.002,63517.0,63516.0,0.5131189]
[1724706035544,0.1413,63532.0,63516.0,0.5131189]
[1724706035762,0.1413,63532.0,63531.0,0.10978469]
[1724706035967,0.1413,63532.0,63531.0,0.2659627]
[1724706037456,0.16596287,63532.0,63531.0,0.2659627]
[1724706037906,0.16896287,63532.0,63531.0,0.2659627]
[1724706038750,0.17496287,63532.0,63531.0,0.2669627]
[1724706040228,0.17496287,63532.0,63531.0,0.15717801]
[1724706043079,0.17496287,63532.0,63531.0,0.16696254]
[1724706052160,0.03366287,63532.0,63531.0,0.16696254]
[1724706052399,0.03366287,63532.0,63531.0,0.24476254]
[1724706052637,0.009,63532.0,63531.0,0.24476254]
[1724706053574,0.009,63532.0,63531.0,0.16696254]
[1724706053820,0.1459,63532.0,63531.0,0.16696254]
[1724706054058,0.17056238,63532.0,63531.0,0.16696254]
[1724706055660,0.17056238,63532.0,63531.0,0.001]
[1724706061417,0.28034707,63532.0,63531.0,0.001]
[1724706061630,0.3274423,63532.0,63531.0,0.001]
[1724706062531,0.21765761,63532.0,63531.0,0.001]
[1724706063107,0.17056238,63532.0,63531.0,0.001]
[1724706063550,0.17056238,63532.0,63531.0,0.0019064]
[1724706070213,0.21768306,63532.0,63531.0,0.0019064]
[1724706070771,0.21768929,63532.0,63531.0,0.0019064]
[1724706071419,0.17056238,63532.0,63531.0,0.0019064]
[1724706071624,0.2412434,63532.0,63531.0,0.0019064]
[1724706072032,0.17056238,63532.0,63531.0,0.0019064]
[1724706072275,0.2412434,63532.0,63531.0,0.0019064]
[1724706073273,0.17056238,63532.0,63531.0,0.0019064]
[1724706074173,0.37375897,63532.0,63531.0,0.0019064]
[1724706074379,0.46800033,63532.0,63531.0,0.0019064]
[1724706076301,0.37354272,63532.0,63531.0,0.0019064]
[1724706076516,0.49145403,63532.0,63531.0,0.0019064]
[1724706078660,0.37354272,63532.0,63531.0,0.0019064]
[1724706084210,0.37323156,63532.0,63531.0,0.0019064]
[1724706089073,0.3726192,63532.0,63531.0,0.0019064]
[1724706089683,0.4670241,63532.0,63531.0,0.0019064]
[1724706093951,0.46964197,63532.0,63531.0,0.0019064]
[1724706094158,0.37522386,63532.0,63531.0,0.0019064]
[1724706096450,0.4932465,63532.0,63531.0,0.0019064]
[1724706098046,0.37522386,63532.0,63531.0,0.0019064]
[1724706101421,0.51685103,63532.0,63531.0,0.0019064]
[1724706102528,0.55440187,63532.0,63531.0,0.0019064]
[1724706102750,0.55440187,63532.0,63516.0,0.0009075]
[1724706102751,0.41750187,63532.0,63516.0,0.0009075]
[1724706102975,0.2865359,63517.0,63516.0,0.0009075]
[1724706103206,0.49119738,63517.0,63516.0,0.0009075]
[1724706103429,0.34946148,63517.0,63516.0,0.0009075]
[1724706105210,0.34946148,63517.0,63516.0,0.0029075]
[1724706107343,0.46739181,63517.0,63516.0,0.0029075]
[1724706107939,0.46739194,63517.0,63516.0,0.0029075]
[1724706109312,0.34946148,63517.0,63516.0,0.0029075]
[1724706109522,0.2155423,63517.0,63516.0,0.0029075]
[1724706109959,0.48391262,63517.0,63516.0,0.0029075]
[1724706110175,0.38959625,63517.0,63516.0,0.0029075]
[1724706111360,0.48389179,63517.0,63516.0,0.0029075]
[1724706111841,0.50856199,63517.0,63516.0,0.0029075]
[1724706112294,0.50858709,63517.0,63516.0,0.0029075]
[1724706117215,0.41426645,63517.0,63516.0,0.0029075]
[1724706118283,0.50858709,63517.0,63516.0,0.0029075]
[1724706119223,0.41426645,63517.0,63516.0,0.0029075]
[1724706121697,0.1694702,63517.0,63516.0,0.0029075]
[1724706123373,0.24017127,63517.0,63516.0,0.0029075]
[1724706125038,0.23998182,63517.0,63516.0,0.0029075]
[1724706126465,0.23997596,63517.0,63516.0,0.0029075]
[1724706127536,0.09536541,63517.0,63516.0,0.0029075]
[1724706127800,0.0246702,63517.0,63516.0,0.0029075]
[1724706132431,0.1821082,63517.0,63516.0,0.0029075]
[1724706134462,0.8118602,63517.0,63516.0,0.0029075]
[1724706134701,0.9572602,63517.0,63516.0,0.0029075]
[1724706135224,1.02796929,63517.0,63516.0,0.0029075]
[1724706135483,0.71309329,63517.0,63516.0,0.0029075]
[1724706136263,0.6423842,63517.0,63516.0,0.0029075]
[1724706137277,0.98031213,63517.0,63516.0,0.0029075]
[1724706137525,0.71311384,63517.0,63516.0,0.0029075]
[1724706138001,1.29513356,63517.0,63516.0,0.0029075]
[1724706138240,1.20087328,63517.0,63516.0,0.0029075]
[1724706138739,1.31065797,63517.0,63516.0,0.0029075]
[1724706139245,1.42848332,63517.0,63516.0,0.0029075]
[1724706140239,1.31065797,63517.0,63516.0,0.0029075]
[1724706140972,1.45204839,63517.0,63516.0,0.0029075]
[1724706141232,1.76692439,63517.0,63516.0,0.0029075]
[1724706142235,1.93815759,63517.0,63516.0,0.0029075]
[1724706142470,1.93850399,63517.0,63516.0,0.0029075]
[1724706143187,1.76709906,63517.0,63516.0,0.0029075]
[1724706144366,2.06951165,63517.0,63516.0,0.0029075]
[1724706144629,2.05613745,63517.0,63516.0,0.0029075]
[1724706144846,1.63264417,63517.0,63516.0,0.0029075]
[1724706145060,1.31776817,63517.0,63516.0,0.0029075]
[1724706145275,1.4898063,63517.0,63516.0,0.0029075]
[1724706145496,1.17620308,63517.0,63516.0,0.0029075]
[1724706145736,1.49107908,63517.0,63516.0,0.0029075]
[1724706146174,1.8055073,63517.0,63516.0,0.0029075]
[1724706146811,1.4906313,63517.0,63516.0,0.0029075]
[1724706147029,1.0303553,63517.0,63516.0,0.0029075]
[1724706147266,0.71675208,63517.0,63516.0,0.0029075]
[1724706147492,1.03162808,63517.0,63516.0,0.0029075]
[1724706147706,1.17002808,63517.0,63516.0,0.0029075]
[1724706147913,1.1946992,63517.0,63516.0,0.0029075]
[1724706148134,1.5095752,63517.0,63516.0,0.0029075]
[1724706148356,1.98518496,63517.0,63516.0,0.0029075]
[1724706148576,1.82612074,63517.0,63516.0,0.0029075]
[1724706149850,1.98518496,63517.0,63516.0,0.0029075]
[1724706150953,1.82612074,63517.0,63516.0,0.0029075]
[1724706165137,1.82049797,63517.0,63516.0,0.0029075]
[1724706169277,1.50562197,63517.0,63516.0,0.0029075]
[1724706169900,1.82049797,63517.0,63516.0,0.0029075]
[1724706170371,1.33356042,63517.0,63516.0,0.0029075]
[1724706170797,1.50668812,63517.0,63516.0,0.0029075]
[1724706171005,1.64843642,63517.0,63516.0,0.0029075]
[1724706171670,1.33356042,63517.0,63516.0,0.0029075]
[1724706173211,1.64843642,63517.0,63516.0,0.0029075]
[1724706173423,1.33356042,63517.0,63516.0,0.0029075]
[1724706174947,1.19181212,63517.0,63516.0,0.0029075]
[1724706175168,1.50662145,63517.0,63516.0,0.0029075]
[1724706175903,1.33356825,63517.0,63516.0,0.0029075]
[1724706176355,1.64844425,63517.0,63516.0,0.0029075]
[1724706176569,1.33356825,63517.0,63516.0,0.0029075]
[1724706177232,1.50816011,63517.0,63516.0,0.0029075]
[1724706178934,1.82303611,63517.0,63516.0,0.0029075]
[1724706179174,1.50816011,63517.0,63516.0,0.0029075]
[1724706179390,1.26707062,63517.0,63516.0,0.0029075]
[1724706179599,1.50985863,63517.0,63516.0,0.0029075]
[1724706180447,1.82473463,63517.0,63516.0,0.0029075]
[1724706181113,1.50985863,63517.0,63516.0,0.0029075]
[1724706181549,1.82473463,63517.0,63516.0,0.0029075]
[1724706182844,1.82235888,63517.0,63516.0,0.0029075]
[1724706183570,2.00488795,63517.0,63516.0,0.0029075]
[1724706183786,1.84535888,63517.0,63516.0,0.0029075]
[1724706183992,2.16023488,63517.0,63516.0,0.0029075]
[1724706184651,2.16023488,63517.0,63516.0,0.0009075]
[1724706184865,2.17023488,63517.0,63516.0,0.0009075]
[1724706185111,2.16523488,63517.0,63516.0,0.0009075]
[1724706185340,2.16023488,63517.0,63516.0,0.0009075]
[1724706185554,2.17323488,63517.0,63516.0,0.0009075]
[1724706185800,2.18723488,63517.0,63516.0,0.0009075]
[1724706186247,1.418964,63516.0,63515.0,0.00081135]
[1724706186471,2.39543877,63516.0,63515.0,0.00081135]
[1724706186905,2.71031977,63516.0,63515.0,0.00081135]
[1724706187977,2.73531977,63516.0,63515.0,0.00081135]
[1724706188621,2.72331977,63516.0,63515.0,0.00081135]
[1724706188852,2.71031977,63516.0,63515.0,0.00081135]
[1724706189070,2.73831977,63516.0,63515.0,0.00081135]
[1724706190428,2.72520694,63516.0,63515.0,0.00081135]
[1724706196360,1.66773869,63512.0,63511.0,0.00124503]
[1724706196601,2.54946944,63512.0,63511.0,0.00124503]
[1724706197222,2.54845692,63512.0,63511.0,0.00124503]
[1724706197868,2.56245692,63512.0,63511.0,0.00124503]
[1724706198089,2.57645692,63512.0,63511.0,0.00124503]
[1724706198964,2.57643621,63512.0,63511.0,0.00124503]
[1724706199661,2.41719293,63512.0,63511.0,0.00124503]
[1724706200879,2.57643621,63512.0,63511.0,0.00124503]
[1724706201140,2.41719293,63512.0,63511.0,0.00124503]
[1724706202069,2.41739586,63512.0,63511.0,0.00124503]
[1724706205142,2.30761117,63512.0,63511.0,0.00124503]
[1724706205363,2.26121785,63512.0,63511.0,0.00124503]
[1724706206906,2.26182507,63512.0,63511.0,0.00124503]
[1724706211641,2.26255028,63512.0,63511.0,0.00124503]
[1724706216411,1.71873869,63512.0,63511.0,0.00124503]
[1724706216616,2.26333604,63512.0,63511.0,0.00124503]
[1724706217267,2.26314653,63512.0,63511.0,0.00124503]
[1724706220617,2.4223594,63512.0,63511.0,0.00124503]
[1724706221270,2.349482,63512.0,63511.0,0.00124503]
[1724706221486,2.4220221,63512.0,63511.0,0.00124503]
[1724706222609,2.26271052,63512.0,63511.0,0.00124503]
[1724706223683,2.15292583,63512.0,63511.0,0.00124503]
[1724706223898,2.26271052,63512.0,63511.0,0.00124503]
[1724706224547,2.42210822,63512.0,63511.0,0.00124503]
[1724706225627,2.26271052,63512.0,63511.0,0.00124503]
[1724706229776,2.26353452,63512.0,63511.0,0.00124503]
[1724706231077,2.26701141,63512.0,63511.0,0.00124503]
[1724706242396,2.73809042,63512.0,63511.0,0.00124503]
[1724706242614,1.03712169,63505.0,63504.0,0.009075]
[1724706242845,1.9273285,63505.0,63504.0,0.009075]
[1724706243120,2.23762992,63505.0,63504.0,0.009075]
[1724706243356,2.26230787,63505.0,63504.0,0.009075]
[1724706243586,2.41848588,63505.0,63504.0,0.009075]
[1724706244051,2.73202663,63505.0,63504.0,0.009075]
[1724706244285,2.50530276,63505.0,63504.0,0.009075]
[1724706245365,2.50630276,63505.0,63504.0,0.009075]
[1724706245574,2.49930276,63505.0,63504.0,0.009075]
[1724706245788,2.51330276,63505.0,63504.0,0.009075]
[1724706246004,2.52730276,63505.0,63504.0,0.009075]
[1724706247319,2.95545921,63505.0,63504.0,0.009075]
[1724706247998,3.37768982,63505.0,63504.0,0.009075]
[1724706248217,3.33712188,63505.0,63504.0,0.009075]
[1724706248437,3.26646837,63505.0,63504.0,0.009075]
[1724706248652,2.31578265,63505.0,63504.0,0.009075]
[1724706248882,2.84315383,63505.0,63504.0,0.009075]
[1724706250492,2.31578265,63505.0,63504.0,0.009075]
[1724706250750,2.84288008,63505.0,63504.0,0.009075]
[1724706251819,2.99901176,63505.0,63504.0,0.009075]
[1724706252033,1.81137,63504.0,63503.0,0.00833505]
[1724706252252,3.10357605,63504.0,63503.0,0.00833505]
[1724706252490,2.73655071,63504.0,63503.0,0.00833505]
[1724706252722,1.04008469,63500.0,63499.0,0.00010586]
[1724706253020,1.7059289,63500.0,63499.0,0.00010586]
[1724706253243,2.3358489,63500.0,63499.0,0.00010586]
[1724706253455,2.63558083,63500.0,63499.0,0.00010586]
[1724706253889,2.47628013,63500.0,63499.0,0.00010586]
[1724706255039,2.49028013,63500.0,63499.0,0.00010586]
[1724706255698,2.50428013,63500.0,63499.0,0.00010586]
[1724706264194,2.50518764,63500.0,63499.0,0.00010586]
[1724706267123,2.52987073,63500.0,63499.0,0.00010586]
[1724706268081,2.51895016,63500.0,63499.0,0.00010586]
[1724706268299,2.09420547,63500.0,63499.0,0.00010586]
[1724706268517,2.40916547,63500.0,63499.0,0.00010586]
[1724706270454,2.09320547,63500.0,63499.0,0.00010586]
[1724706272451,2.25240539,63500.0,63499.0,3.78e-06]
[1724706272676,2.09320547,63500.0,63499.0,3.78e-06]
[1724706274474,2.25240539,63500.0,63499.0,3.78e-06]
[1724706274692,2.09320547,63500.0,63499.0,3.78e-06]
[1724706275327,2.25240539,63500.0,63499.0,3.78e-06]
[1724706275539,2.09320547,63500.0,63499.0,3.78e-06]
[1724706276443,2.25240539,63500.0,63499.0,3.78e-06]
[1724706277778,2.09320547,63500.0,63499.0,3.78e-06]
[1724706277984,2.25251192,63500.0,63499.0,3.78e-06]
[1724706278174,2.09320547,63500.0,63499.0,3.78e-06]
[1724706280497,2.40816547,63500.0,63499.0,3.78e-06]
[1724706280698,2.09320547,63500.0,63499.0,3.78e-06]
[1724706282610,2.09274024,63500.0,63499.0,3.78e-06]
[1724706285311,1.10243,63496.0,63492.0,0.009064]
[1724706285523,1.34722695,63496.0,63492.0,0.009064]
[1724706285949,1.64114163,63496.0,63492.0,0.009064]
[1724706286153,1.74872281,63496.0,63492.0,0.009064]
[1724706286564,1.75872281,63496.0,63492.0,0.009064]
[1724706287648,1.76772281,63496.0,63492.0,0.009064]
[1724706288370,1.76658989,63496.0,63492.0,0.009064]
[1724706289098,1.76765413,63496.0,63492.0,0.009064]
[1724706300589,1.82965413,63496.0,63492.0,0.009064]
[1724706301131,1.8272408,63496.0,63492.0,0.009064]
[1724706304127,1.8272408,63496.0,63495.0,0.00060689]
[1724706305723,2.13478648,63496.0,63495.0,0.00060689]
[1724706310541,2.13764803,63496.0,63495.0,0.00060689]
[1724706315077,2.39382604,63496.0,63495.0,4.934e-05]
[1724706320010,2.39301781,63496.0,63495.0,4.934e-05]
[1724706323859,2.39392532,63496.0,63495.0,4.934e-05]
[1724706324770,1.8860767,63496.0,63495.0,4.934e-05]
[1724706325005,2.39354069,63496.0,63495.0,4.934e-05]
[1724706327714,2.39354069,63496.0,63495.0,3.54e-06]
[1724706330131,2.09246268,63496.0,63495.0,3.54e-06]
[1724706330808,1.75448268,63496.0,63495.0,0.14060354]
[1724706331017,1.43950268,63496.0,63495.0,0.14060354]
[1724706331439,1.14977942,63496.0,63495.0,0.14060354]
[1724706331650,1.43950268,63496.0,63495.0,0.14060354]
[1724706331870,1.75448268,63496.0,63495.0,0.14060354]
[1724706332116,1.43950268,63496.0,63495.0,0.14060354]
[1724706332328,1.14977942,63496.0,63495.0,0.14060354]
[1724706332746,1.46475942,63496.0,63495.0,0.14060354]
[1724706332963,1.75448268,63496.0,63495.0,0.14060354]
[1724706333387,1.43950268,63496.0,63495.0,0.14060354]
[1724706333803,0.55205268,63496.0,63495.0,0.14079308]
[1724706334017,0.55205268,63496.0,63495.0,0.29828508]
[1724706334018,0.26232942,63496.0,63495.0,0.29828508]
[1724706334238,0.27086757,63496.0,63495.0,0.29828508]
[1724706334682,0.27086757,63496.0,63495.0,0.14079308]
[1724706334894,0.24618639,63496.0,63495.0,0.14079308]
[1724706335107,0.22718639,63496.0,63495.0,0.45446309]
[1724706335344,0.32166517,63496.0,63495.0,0.76944809]
[1724706335564,0.22718639,63496.0,63495.0,0.76944809]
[1724706335777,0.00090751,63496.0,63495.0,0.76944809]
[1724706336020,0.01090751,63496.0,63495.0,0.76944809]
[1724706336236,0.08174555,63496.0,63495.0,0.76944809]
[1724706336442,0.08974555,63496.0,63495.0,0.76944809]
[1724706336648,0.08174555,63496.0,63495.0,0.76944809]
[1724706337077,0.23223555,63496.0,63495.0,0.14079308]
[1724706337362,0.70494814,63496.0,63495.0,0.14079308]
[1724706337578,0.82309093,63496.0,63495.0,0.14079308]
[1724706338009,0.82709093,63496.0,63495.0,0.14079308]
[1724706338242,1.14207093,63496.0,63495.0,0.14079308]
[1724706338452,1.16575985,63496.0,63495.0,0.07880354]
[1724706338726,1.16575985,63496.0,63495.0,0.07899308]
[1724706338727,1.02392814,63496.0,63495.0,0.07899308]
[1724706338954,1.02392814,63496.0,63495.0,3.54e-06]
[1724706339172,1.36358721,63496.0,63495.0,3.54e-06]
[1724706339386,1.59834789,63496.0,63495.0,3.54e-06]
[1724706339605,1.79642003,63496.0,63495.0,3.54e-06]
[1724706340253,1.95598071,63496.0,63495.0,3.54e-06]
[1724706342528,1.97898071,63496.0,63495.0,3.54e-06]
[1724706343010,2.29396071,63496.0,63495.0,3.54e-06]
[1724706343692,2.27787479,63496.0,63495.0,3.54e-06]
[1724706344377,2.4340528,63496.0,63495.0,3.54e-06]
[1724706344633,2.37467951,63496.0,63495.0,3.54e-06]
[1724706350161,2.37442587,63496.0,63495.0,3.54e-06]
[1724706352177,2.37442587,63496.0,63492.0,0.009064]
[1724706352178,1.102482,63493.0,63492.0,0.009064]
[1724706352355,1.60394022,63493.0,63492.0,0.009064]
[1724706352567,1.73558692,63493.0,63492.0,0.009064]